fUST/lending_fUST_20250316
["ID","MTS","AMOUNT","RATE_DAILY","PERIOD"]
[356202941,1742068257826,-500.0,0.00010136,2]
[356202942,1742068257836,-662.59,0.00010136,2]
[356202943,1742068257847,-7241.19,0.00010136,2]
[356202944,1742068257858,-500.0,0.00010136,2]
[356202945,1742068257868,-1925.46,0.00010136,2]
[356202946,1742068257878,-500.0,0.00010136,2]
[356202947,1742068257888,-593.22,0.00010136,2]
[356202948,1742068257898,-1203.52,0.00010136,2]
[356202949,1742068257908,-958.65,0.00010136,2]
[356202950,1742068257918,-49057.18,0.00010136,2]
[356202951,1742068257932,-2876.09,0.00010136,2]
[356202952,1742068257942,-500.0,0.00010136,2]
[356202953,1742068257952,-500.0,0.00010136,2]
[356202954,1742068257962,-759.11,0.00010136,2]
[356202955,1742068257972,-4322.13,0.00010136,2]
[356202956,1742068257982,-370.719574,0.00010224,2]
[356202957,1742068257992,-370.719574,0.00010224,2]
[356202958,1742068258002,-13606.62765909,0.00010341,2]
[356202959,1742068258013,-500.0,0.0001041,2]
[356202960,1742068258023,-672.99,0.0001041,2]
[356202961,1742068258033,-570.18,0.0001041,2]
[356202962,1742068258043,-589.22,0.0001041,2]
[356202963,1742068258053,-603.66,0.0001041,2]
[356202964,1742068258063,-500.0,0.0001041,2]
[356202965,1742068258073,-754.42,0.0001041,2]
[356202966,1742068258083,-637.77,0.0001041,2]
[356202967,1742068258093,-500.0,0.0001041,2]
[356202968,1742068258102,-500.0,0.0001041,2]
[356202969,1742068258112,-596.34,0.0001041,2]
[356202970,1742068258122,-942.77,0.0001041,2]
[356202971,1742068258133,-515.72,0.0001041,2]
[356202972,1742068258143,-898.0,0.0001041,2]
[356202973,1742068258152,-500.0,0.0001041,2]
[356202974,1742068258163,-544.53207308,0.0001041,2]
[356202975,1742068258175,-500.0,0.0001041,2]
[356202976,1742068258186,-500.0,0.0001041,2]
[356202977,1742068258195,-500.0,0.0001041,2]
[356202978,1742068258205,-500.0,0.0001041,2]
[356202979,1742068258215,-500.0,0.0001041,2]
[356202980,1742068258225,-257.36,0.0001041,2]
[356202981,1742068258234,-577.41,0.0001041,2]
[356202982,1742068258244,-1457.49,0.0001041,2]
[356202983,1742068258255,-1006.86,0.0001041,2]
[356202984,1742068258264,-3433.83,0.0001041,2]
[356202985,1742068258274,-1078.98,0.0001041,2]
[356202986,1742068258284,-500.0,0.0001041,2]
[356202987,1742068258295,-500.0,0.0001041,2]
[356202988,1742068258306,-2959.64,0.0001041,2]
[356202989,1742068258316,-4863.85,0.0001041,2]
[356202990,1742068258327,-844.45,0.0001041,2]
[356202991,1742068258337,-476.87411841,0.0001041,2]
[356202992,1742068258347,-500.0,0.0001041,2]
[356202993,1742068258357,-500.0,0.0001041,2]
[356202994,1742068258368,-1808.22,0.0001041,2]
[356202995,1742068258378,-500.0,0.0001041,2]
[356202996,1742068258387,-500.0,0.0001041,2]
[356202997,1742068258397,-407.32,0.0001041,2]
[356202998,1742068258407,-627.47,0.0001041,2]
[356202999,1742068258417,-543.65,0.0001041,2]
[356203000,1742068258427,-500.0,0.0001041,2]
[356203001,1742068258436,-4511.4,0.0001041,2]
[356203002,1742068258446,-504.88,0.0001041,2]
[356203003,1742068258456,-500.0,0.0001041,2]
[356203004,1742068258466,-796.52,0.0001041,2]
[356203005,1742068258475,-584.68,0.0001041,2]
[356203006,1742068258485,-809.73,0.0001041,2]
[356203007,1742068258495,-500.0,0.0001041,2]
[356203008,1742068258505,-500.0,0.0001041,2]
[356203009,1742068258515,-674.53,0.0001041,2]
[356203010,1742068258524,-970.25,0.0001041,2]
[356203011,1742068258535,-1536.19,0.0001041,2]
[356203012,1742068258544,-3639.16,0.0001041,2]
[356203013,1742068258554,-1797.58,0.0001041,2]
[356203014,1742068258564,-531.86,0.0001041,2]
[356203015,1742068258574,-3995.19,0.0001041,2]
[356203016,1742068258584,-500.0,0.0001041,2]
[356203017,1742068258594,-3993.78,0.0001041,2]
[356203018,1742068258604,-3610.94,0.0001041,2]
[356203019,1742068258614,-2128.68,0.0001041,2]
[356203020,1742068258624,-500.0,0.0001041,2]
[356203021,1742068258634,-1906.54,0.0001041,2]
[356203022,1742068258643,-907.33,0.0001041,2]
[356203023,1742068258654,-521.3,0.0001041,2]
[356203024,1742068258664,-1070.75,0.0001041,2]
[356203025,1742068258674,-260.64,0.0001041,2]
[356203026,1742068258684,-662.59,0.0001041,2]
[356203027,1742068258694,-7241.19,0.0001041,2]
[356203028,1742068258703,-500.0,0.0001041,2]
[356203029,1742068258714,-1925.46,0.0001041,2]
[356203030,1742068258724,-500.0,0.0001041,2]
[356203031,1742068258733,-593.22,0.0001041,2]
[356203032,1742068258743,-1203.52,0.0001041,2]
[356203033,1742068258753,-958.65,0.0001041,2]
[356203034,1742068258764,-49057.18,0.0001041,2]
[356203035,1742068258774,-2876.09,0.0001041,2]
[356203036,1742068258784,-500.0,0.0001041,2]
[356203037,1742068258794,-500.0,0.0001041,2]
[356203038,1742068258803,-759.11,0.0001041,2]
[356203039,1742068258813,-4322.13,0.0001041,2]
[356203040,1742068258823,-10000.0,0.00010411,2]
[356203041,1742068258832,-600.0,0.00010411,2]
[356203042,1742068258842,-10000.0,0.00010466,2]
[356203043,1742068258852,-622.2,0.00010466,2]
[356203044,1742068258862,-10000.0,0.00010521,2]
[356203045,1742068258871,-645.2214,0.00010521,2]
[356203046,1742068258881,-600.0,0.0001056,2]
[356203047,1742068258891,-10000.0,0.00010576,2]
[356203048,1742068258900,-669.0945918,0.00010576,2]
[356203049,1742068258910,-3703.4455503,0.0001063,2]
[356203050,1742068258920,-10000.0,0.00010631,2]
[356203051,1742068258930,-693.8510917,0.00010631,2]
[356203052,1742068258940,-600.0,0.0001067,2]
[356203053,1742068258950,-500.0,0.00010684,2]
[356203054,1742068258960,-672.99,0.00010684,2]
[356203055,1742068258970,-570.18,0.00010684,2]
[356203056,1742068258980,-589.22,0.00010684,2]
[356203057,1742068258990,-603.66,0.00010684,2]
[356203058,1742068259000,-500.0,0.00010684,2]
[356203059,1742068259010,-754.42,0.00010684,2]
[356203060,1742068259020,-637.77,0.00010684,2]
[356203061,1742068259029,-483.50241978,0.00010684,2]
[356203062,1742068259039,-500.0,0.00010684,2]
[356203063,1742068259049,-596.34,0.00010684,2]
[356203064,1742068259060,-942.77,0.00010684,2]
[356203065,1742068259070,-515.72,0.00010684,2]
[356203066,1742068259080,-898.0,0.00010684,2]
[356203067,1742068259090,-500.0,0.00010684,2]
[356203068,1742068259100,-500.0,0.00010684,2]
[356203069,1742068259109,-388.53894671,0.00010684,2]
[356203070,1742068259119,-500.0,0.00010684,2]
[356203071,1742068259129,-500.0,0.00010684,2]
[356203072,1742068259139,-500.0,0.00010684,2]
[356203073,1742068259149,-577.41,0.00010684,2]
[356203074,1742068259158,-1457.49,0.00010684,2]
[356203075,1742068259168,-1006.86,0.00010684,2]
[356203076,1742068259180,-3433.83,0.00010684,2]
[356203077,1742068259190,-1078.98,0.00010684,2]
[356203078,1742068259200,-500.0,0.00010684,2]
[356203079,1742068259210,-500.0,0.00010684,2]
[356203080,1742068259219,-2959.64,0.00010684,2]
[356203081,1742068259230,-4863.85,0.00010684,2]
[356203082,1742068259240,-844.45,0.00010684,2]
[356203083,1742068259250,-500.0,0.00010684,2]
[356203084,1742068259260,-500.0,0.00010684,2]
[356203085,1742068259270,-1808.22,0.00010684,2]
[356203086,1742068259279,-500.0,0.00010684,2]
[356203087,1742068259289,-500.0,0.00010684,2]
[356203088,1742068259298,-627.47,0.00010684,2]
[356203089,1742068259308,-543.65,0.00010684,2]
[356203090,1742068259318,-500.0,0.00010684,2]
[356203091,1742068259328,-4511.4,0.00010684,2]
[356203092,1742068259337,-504.88,0.00010684,2]
[356203093,1742068259347,-500.0,0.00010684,2]
[356203094,1742068259357,-796.52,0.00010684,2]
[356203095,1742068259367,-584.68,0.00010684,2]
[356203096,1742068259376,-809.73,0.00010684,2]
[356203097,1742068259386,-500.0,0.00010684,2]
[356203098,1742068259396,-500.0,0.00010684,2]
[356203099,1742068259405,-674.53,0.00010684,2]
[356203100,1742068259415,-970.25,0.00010684,2]
[356203101,1742068259425,-1536.19,0.00010684,2]
[356203102,1742068259435,-3639.16,0.00010684,2]
[356203103,1742068259444,-1797.58,0.00010684,2]
[356203104,1742068259454,-531.86,0.00010684,2]
[356203105,1742068259464,-3995.19,0.00010684,2]
[356203106,1742068259474,-500.0,0.00010684,2]
[356203107,1742068259484,-3993.78,0.00010684,2]
[356203108,1742068259494,-3610.94,0.00010684,2]
[356203109,1742068259505,-2128.68,0.00010684,2]
[356203110,1742068259515,-500.0,0.00010684,2]
[356203111,1742068259525,-1906.54,0.00010684,2]
[356203112,1742068259534,-907.33,0.00010684,2]
[356203113,1742068259545,-521.3,0.00010684,2]
[356203114,1742068259555,-1070.75,0.00010684,2]
[356203115,1742068259564,-662.59,0.00010684,2]
[356203116,1742068259574,-7241.19,0.00010684,2]
[356203117,1742068259584,-500.0,0.00010684,2]
[356203118,1742068259594,-1925.46,0.00010684,2]
[356203119,1742068259603,-500.0,0.00010684,2]
[356203120,1742068259613,-593.22,0.00010684,2]
[356203121,1742068259623,-1203.52,0.00010684,2]
[356203122,1742068259633,-958.65,0.00010684,2]
[356203123,1742068259643,-49057.18,0.00010684,2]
[356203124,1742068259653,-2876.09,0.00010684,2]
[356203125,1742068259663,-500.0,0.00010684,2]
[356203126,1742068259672,-500.0,0.00010684,2]
[356203127,1742068259682,-759.11,0.00010684,2]
[356203128,1742068259692,-4322.13,0.00010684,2]
[356203129,1742068259701,-10000.0,0.00010686,2]
[356203130,1742068259711,-719.52358209,0.00010686,2]
[356203131,1742068259721,-10000.0,0.00010741,2]
[356203132,1742068259731,-746.14595463,0.00010741,2]
[356203133,1742068259741,-823.0,0.0001077,2]
[356203134,1742068259751,-600.0,0.0001078,2]
[356203135,1742068259761,-10000.0,0.00010796,2]
[356203136,1742068259770,-773.75335495,0.00010796,2]
[356203137,1742068259780,-302.0,0.00010851,2]
[356203138,1742068259790,-802.38222908,0.00010851,2]
[356203139,1742068259800,-797.99846631,0.0001089,2]
[356203140,1742068259810,-13151.04926333,0.00010906,2]
[356203141,1742068259821,-832.07037156,0.00010906,2]
[356203142,1742068259830,-500.0,0.00010958,2]
[356203143,1742068259840,-672.99,0.00010958,2]
[356203144,1742068259850,-570.18,0.00010958,2]
[356203145,1742068259860,-589.22,0.00010958,2]
[356203146,1742068259870,-603.66,0.00010958,2]
[356203147,1742068259879,-370.719574,0.00010958,2]
[356203148,1742068259890,-151.0,0.00010958,2]
[356203149,1742068259901,-370.719574,0.00010958,2]
[356203150,1742068260063,-500.0,0.00010958,2]
[356203151,1742068260074,-754.42,0.00010958,2]
[356203152,1742068260083,-637.77,0.00010958,2]
[356203153,1742068260093,-500.0,0.00010958,2]
[356203154,1742068260103,-596.34,0.00010958,2]
[356203155,1742068260112,-942.77,0.00010958,2]
[356203156,1742068260122,-515.72,0.00010958,2]
[356203157,1742068260131,-898.0,0.00010958,2]
[356203158,1742068260141,-500.0,0.00010958,2]
[356203159,1742068260150,-500.0,0.00010958,2]
[356203160,1742068260160,-500.0,0.00010958,2]
[356203161,1742068260171,-500.0,0.00010958,2]
[356203162,1742068260182,-500.0,0.00010958,2]
[356203163,1742068260192,-577.41,0.00010958,2]
[356203164,1742068260202,-1457.49,0.00010958,2]
[356203165,1742068260214,-1006.86,0.00010958,2]
[356203166,1742068260224,-3433.83,0.00010958,2]
[356203167,1742068260234,-1078.98,0.00010958,2]
[356203168,1742068260244,-500.0,0.00010958,2]
[356203169,1742068260255,-500.0,0.00010958,2]
[356203170,1742068260266,-2959.64,0.00010958,2]
[356203171,1742068260275,-4863.85,0.00010958,2]
[356203172,1742068260285,-844.45,0.00010958,2]
[356203173,1742068260295,-500.0,0.00010958,2]
[356203174,1742068260305,-500.0,0.00010958,2]
[356203175,1742068260315,-1808.22,0.00010958,2]
[356203176,1742068260324,-500.0,0.00010958,2]
[356203177,1742068260334,-500.0,0.00010958,2]
[356203178,1742068260343,-627.47,0.00010958,2]
[356203179,1742068260352,-543.65,0.00010958,2]
[356203180,1742068260362,-500.0,0.00010958,2]
[356203181,1742068260372,-4511.4,0.00010958,2]
[356203182,1742068260383,-504.88,0.00010958,2]
[356203183,1742068260393,-500.0,0.00010958,2]
[356203184,1742068260402,-796.52,0.00010958,2]
[356203185,1742068260411,-584.68,0.00010958,2]
[356203186,1742068260421,-809.73,0.00010958,2]
[356203187,1742068260430,-500.0,0.00010958,2]
[356203188,1742068260440,-500.0,0.00010958,2]
[356203189,1742068260451,-674.53,0.00010958,2]
[356203190,1742068260460,-970.25,0.00010958,2]
[356203191,1742068260472,-1536.19,0.00010958,2]
[356203192,1742068260481,-3639.16,0.00010958,2]
[356203193,1742068260490,-1797.58,0.00010958,2]
[356203194,1742068260500,-531.86,0.00010958,2]
[356203195,1742068260510,-3995.19,0.00010958,2]
[356203196,1742068260521,-500.0,0.00010958,2]
[356203197,1742068260531,-3993.78,0.00010958,2]
[356203198,1742068260540,-3610.94,0.00010958,2]
[356203199,1742068260549,-2128.68,0.00010958,2]
[356203200,1742068260559,-500.0,0.00010958,2]
[356203201,1742068260569,-1906.54,0.00010958,2]
[356203202,1742068260579,-907.33,0.00010958,2]
[356203203,1742068260588,-521.3,0.00010958,2]
[356203204,1742068260597,-1070.75,0.00010958,2]
[356203205,1742068260607,-662.59,0.00010958,2]
[356203206,1742068260617,-7241.19,0.00010958,2]
[356203207,1742068260626,-500.0,0.00010958,2]
[356203208,1742068260637,-1925.46,0.00010958,2]
[356203209,1742068260646,-500.0,0.00010958,2]
[356203210,1742068260655,-593.22,0.00010958,2]
[356203211,1742068260665,-1203.52,0.00010958,2]
[356203212,1742068260675,-958.65,0.00010958,2]
[356203213,1742068260685,-49057.18,0.00010958,2]
[356203214,1742068260694,-2876.09,0.00010958,2]
[356203215,1742068260704,-544.48,0.00010958,2]
[356203216,1742068260713,-500.0,0.00010958,2]
[356203217,1742068260722,-759.11,0.00010958,2]
[356203218,1742068260732,-4322.13,0.00010958,2]
[356203219,1742068260741,-442.343063,0.00010959,2]
[356203220,1742068260751,-442.343063,0.00010959,2]
[356203221,1742068260760,-581.767402,0.00010959,2]
[356203222,1742068260770,-581.767402,0.00010959,2]
[356203223,1742068260779,-151.0,0.00010959,2]
[356203224,1742068260788,-151.0,0.00010959,2]
[356203225,1742068260798,-151.0,0.00010959,2]
[356203226,1742068260807,-1295.172668,0.00010959,2]
[356203227,1742068260816,-1295.172668,0.00010959,2]
[356203228,1742068260826,-3362.150038,0.00010959,2]
[356203229,1742068260835,-3362.150038,0.00010959,2]
[356203230,1742068260844,-3362.150038,0.00010959,2]
[356203231,1742068260853,-3362.150038,0.00010959,2]
[356203232,1742068260862,-151.0,0.00010959,2]
[356203233,1742068260871,-151.0,0.00010959,2]
[356203234,1742068260880,-151.0,0.00010959,2]
[356203235,1742068260890,-151.0,0.00010959,2]
[356203236,1742068260900,-192.178208,0.00010959,2]
[356203237,1742068260909,-192.178208,0.00010959,2]
[356203238,1742068260918,-192.178208,0.00010959,2]
[356203239,1742068260927,-192.178208,0.00010959,2]
[356203240,1742068260936,-151.0,0.00010959,2]
[356203241,1742068260946,-151.0,0.00010959,2]
[356203242,1742068260955,-151.0,0.00010959,2]
[356203243,1742068260964,-161.778205,0.00010959,2]
[356203244,1742068260974,-1748.284356,0.00010959,2]
[356203245,1742068260983,-1748.284356,0.00010959,2]
[356203246,1742068260992,-1748.284356,0.00010959,2]
[356203247,1742068261002,-1748.284356,0.00010959,2]
[356203248,1742068261011,-1748.284356,0.00010959,2]
[356203249,1742068261020,-151.0,0.00010959,2]
[356203250,1742068261030,-151.0,0.00010959,2]
[356203251,1742068261039,-151.0,0.00010959,2]
[356203252,1742068261048,-151.0,0.00010959,2]
[356203253,1742068261057,-151.0,0.00010959,2]
[356203254,1742068261066,-151.0,0.00010959,2]
[356203255,1742068261075,-151.0,0.00010959,2]
[356203256,1742068261085,-263.707224,0.00010959,2]
[356203257,1742068261095,-2416.965393,0.00010959,2]
[356203258,1742068261104,-2416.965393,0.00010959,2]
[356203259,1742068261114,-2416.965393,0.00010959,2]
[356203260,1742068261123,-2416.965393,0.00010959,2]
[356203261,1742068261133,-2416.965393,0.00010959,2]
[356203262,1742068261142,-2416.965393,0.00010959,2]
[356203263,1742068261152,-151.0,0.00010959,2]
[356203264,1742068261161,-165.606092,0.00010959,2]
[356203265,1742068261174,-151.0,0.00010959,2]
[356203266,1742068261184,-151.0,0.00010959,2]
[356203267,1742068261193,-151.0,0.00010959,2]
[356203268,1742068261202,-151.0,0.00010959,2]
[356203269,1742068261210,-151.0,0.00010959,2]
[356203270,1742068261221,-151.0,0.00010959,2]
[356203271,1742068261230,-301.536983,0.00010959,2]
[356203272,1742068261240,-151.0,0.00010959,2]
[356203273,1742068261252,-151.0,0.00010959,2]
[356203274,1742068261265,-151.0,0.00010959,2]
[356203275,1742068261274,-151.0,0.00010959,2]
[356203276,1742068261284,-250.0,0.00010959,2]
[356203277,1742068261293,-250.0,0.00010959,2]
[356203278,1742068261302,-250.0,0.00010959,2]
[356203279,1742068261312,-250.0,0.00010959,2]
[356203280,1742068261321,-250.0,0.00010959,2]
[356203281,1742068261331,-250.0,0.00010959,2]
[356203282,1742068261342,-250.0,0.00010959,2]
[356203283,1742068261352,-250.0,0.00010959,2]
[356203284,1742068261362,-6345.314338,0.00010959,2]
[356203285,1742068261373,-6345.314338,0.00010959,2]
[356203286,1742068261383,-6345.314338,0.00010959,2]
[356203287,1742068261393,-6345.314338,0.00010959,2]
[356203288,1742068261402,-6345.314338,0.00010959,2]
[356203289,1742068261412,-6345.314338,0.00010959,2]
[356203290,1742068261421,-6345.314338,0.00010959,2]
[356203291,1742068261431,-6345.314338,0.00010959,2]
[356203292,1742068261440,-19455.24,0.00010959,2]
[356203293,1742068261449,-16212.7,0.00010959,2]
[356203294,1742068261459,-13510.59,0.00010959,2]
[356203295,1742068261469,-11258.82,0.00010959,2]
[356203296,1742068261478,-9382.35,0.00010959,2]
[356203297,1742068261487,-7818.63,0.00010959,2]
[356203298,1742068261495,-1360.695287,0.00010959,2]
[356203299,1742068261505,-1360.695287,0.00010959,2]
[356203300,1742068261514,-1360.695287,0.00010959,2]
[356203301,1742068261523,-6515.52,0.00010959,2]
[356203302,1742068261533,-1360.695287,0.00010959,2]
[356203303,1742068261542,-1360.695287,0.00010959,2]
[356203304,1742068261551,-1360.695287,0.00010959,2]
[356203305,1742068261561,-151.0,0.00010959,2]
[356203306,1742068261570,-151.0,0.00010959,2]
[356203307,1742068261579,-151.0,0.00010959,2]
[356203308,1742068261589,-151.0,0.00010959,2]
[356203309,1742068261599,-1360.695287,0.00010959,2]
[356203310,1742068261609,-1360.695287,0.00010959,2]
[356203311,1742068261618,-5429.6,0.00010959,2]
[356203312,1742068261627,-4524.67,0.00010959,2]
[356203313,1742068261636,-151.0,0.00010959,2]
[356203314,1742068261645,-151.0,0.00010959,2]
[356203315,1742068261655,-442.343063,0.00010959,2]
[356203316,1742068261664,-442.343063,0.00010959,2]
[356203317,1742068261673,-581.767402,0.00010959,2]
[356203318,1742068261682,-581.767402,0.00010959,2]
[356203319,1742068261692,-151.0,0.00010959,2]
[356203320,1742068261701,-151.0,0.00010959,2]
[356203321,1742068261711,-151.0,0.00010959,2]
[356203322,1742068261720,-1295.172668,0.00010959,2]
[356203323,1742068261728,-1295.172668,0.00010959,2]
[356203324,1742068261738,-1360.695287,0.00010959,2]
[356203325,1742068261748,-151.0,0.00010959,2]
[356203326,1742068261757,-1360.695287,0.00010959,2]
[356203327,1742068261766,-500.0,0.00010959,2]
[356203328,1742068261776,-500.0,0.00010959,2]
[356203329,1742068261785,-316.0,0.00010959,2]
[356203330,1742068261795,-316.0,0.00010959,2]
[356203331,1742068261804,-316.0,0.00010959,2]
[356203332,1742068261814,-316.0,0.00010959,2]
[356203333,1742068261823,-316.0,0.00010959,2]
[356203334,1742068261832,-316.0,0.00010959,2]
[356203335,1742068261842,-316.0,0.00010959,2]
[356203336,1742068261851,-316.0,0.00010959,2]
[356203337,1742068261860,-316.0,0.00010959,2]
[356203338,1742068261869,-331.36067826,0.00010959,2]
[356203339,1742068261878,-1700.0,0.0001096,2]
[356203340,1742068261888,-862.8569753,0.00010961,2]
[356203341,1742068261898,-500.0,0.00010986,2]
[356203342,1742068261907,-500.0,0.00010986,2]
[356203343,1742068261917,-40785.0,0.00011,2]
[356203344,1742068261927,-151.0,0.00011,2]
[356203345,1742068261936,-151.0,0.00011,2]
[356203346,1742068261945,-151.0,0.00011,2]
[356203347,1742068261954,-151.0,0.00011,2]
[356203348,1742068261963,-151.0,0.00011,2]
[356203349,1742068261972,-370.719574,0.00011,2]
[356203350,1742068261981,-370.719574,0.00011,2]
[356203351,1742068261990,-3362.150038,0.00011,2]
[356203352,1742068262000,-3362.150038,0.00011,2]
[356203353,1742068262010,-151.0,0.00011,2]
[356203354,1742068262019,-151.0,0.00011,2]
[356203355,1742068262030,-192.178208,0.00011,2]
[356203356,1742068262039,-192.178208,0.00011,2]
[356203357,1742068262048,-151.0,0.00011,2]
[356203358,1742068262058,-151.0,0.00011,2]
[356203359,1742068262068,-151.0,0.00011,2]
[356203360,1742068262077,-2416.965393,0.00011,2]
[356203361,1742068262087,-2416.965393,0.00011,2]
[356203362,1742068262097,-500.0,0.00011014,2]
[356203363,1742068262106,-500.0,0.00011014,2]
[356203364,1742068262115,-894.78268339,0.00011016,2]
[356203365,1742068262125,-561.5,0.0001104,2]
[356203366,1742068262134,-500.0,0.00011041,2]
[356203367,1742068262144,-500.0,0.00011041,2]
[356203368,1742068262153,-13606.62765909,0.00011055,2]
[356203369,1742068262162,-500.0,0.00011069,2]
[356203370,1742068262173,-500.0,0.00011069,2]
[356203371,1742068262183,-927.88964268,0.00011071,2]
[356203372,1742068262193,-500.0,0.00011096,2]
[356203373,1742068262202,-500.0,0.00011123,2]
[356203374,1742068262213,-962.22155946,0.00011126,2]
[356203375,1742068262222,-500.0,0.00011151,2]
[356203376,1742068262232,-500.0,0.00011178,2]
[356203377,1742068262241,-170.263894,0.00011193,2]
[356203378,1742068262251,-151.0,0.00011193,2]
[356203379,1742068262260,-250.0,0.00011193,2]
[356203380,1742068262270,-250.0,0.00011193,2]
[356203381,1742068262279,-6345.314338,0.00011193,2]
[356203382,1742068262289,-6345.314338,0.00011193,2]
[356203383,1742068262299,-500.0,0.00011206,2]
[356203384,1742068262308,-160.0,0.00011227,3]
[356203385,1742068262318,-244.62959404,0.00011231,2]
[356203386,1742068262327,-811.33,0.00011232,2]
[356203387,1742068262337,-500.0,0.00011232,2]
[356203388,1742068262347,-151.0,0.00011232,2]
[356203389,1742068262357,-151.0,0.00011232,2]
[356203390,1742068262367,-219.89273836,0.00011232,2]
[356203391,1742068262376,-151.0,0.00011232,2]
[356203392,1742068262386,-672.99,0.00011232,2]
[356203393,1742068262395,-570.18,0.00011232,2]
[356203394,1742068262404,-603.66,0.00011232,2]
[356203395,1742068262414,-589.22,0.00011232,2]
[356203396,1742068262423,-500.0,0.00011232,2]
[356203397,1742068262433,-754.42,0.00011232,2]
[356203398,1742068262443,-637.77,0.00011232,2]
[356203399,1742068262452,-500.0,0.00011232,2]
[356203400,1742068262461,-596.34,0.00011232,2]
[356203401,1742068262471,-942.77,0.00011232,2]
[356203402,1742068262481,-515.72,0.00011232,2]
[356203403,1742068262490,-898.0,0.00011232,2]
[356203404,1742068262499,-326.06885121,0.00011232,2]
[356203405,1742068262509,-500.0,0.00011232,2]
[356203406,1742068262518,-1748.284356,0.00011232,2]
[356203407,1742068262529,-1748.284356,0.00011232,2]
[356203408,1742068262538,-250.5089342,0.00011232,2]
[356203409,1742068262547,-500.0,0.00011232,2]
[356203410,1742068262556,-151.0,0.00011232,2]
[356203411,1742068262565,-500.0,0.00011232,2]
[356203412,1742068262574,-577.41,0.00011232,2]
[356203413,1742068262583,-1457.49,0.00011232,2]
[356203414,1742068262593,-1006.86,0.00011232,2]
[356203415,1742068262602,-3433.83,0.00011232,2]
[356203416,1742068262612,-1078.98,0.00011232,2]
[356203417,1742068262621,-500.0,0.00011232,2]
[356203418,1742068262631,-500.0,0.00011232,2]
[356203419,1742068262641,-2959.64,0.00011232,2]
[356203420,1742068262651,-4863.85,0.00011232,2]
[356203421,1742068262660,-844.45,0.00011232,2]
[356203422,1742068262670,-500.0,0.00011232,2]
[356203423,1742068262680,-614.28,0.00011232,2]
[356203424,1742068262690,-1808.22,0.00011232,2]
[356203425,1742068262700,-500.0,0.00011232,2]
[356203426,1742068262709,-169.34,0.00011232,2]
[356203427,1742068262718,-627.47,0.00011232,2]
[356203428,1742068262728,-543.65,0.00011232,2]
[356203429,1742068262738,-500.0,0.00011232,2]
[356203430,1742068262747,-4511.4,0.00011232,2]
[356203431,1742068262757,-504.88,0.00011232,2]
[356203432,1742068262767,-500.0,0.00011232,2]
[356203433,1742068262776,-796.52,0.00011232,2]
[356203434,1742068262785,-584.68,0.00011232,2]
[356203435,1742068262795,-809.73,0.00011232,2]
[356203436,1742068262804,-500.0,0.00011232,2]
[356203437,1742068262814,-236.57912456,0.00011232,2]
[356203438,1742068262823,-674.53,0.00011232,2]
[356203439,1742068262833,-970.25,0.00011232,2]
[356203440,1742068262842,-1536.19,0.00011232,2]